bitfinex/quotes_BTCUSD_20241208
["timestamp","ask_amount","ask_price","bid_price","bid_amount"]
[1733670313878,0.35983251,99721.0,99720.0,0.00017242]
[1733670314296,0.60714851,99721.0,99720.0,0.00017242]
[1733670314503,0.60414851,99721.0,99720.0,0.00017242]
[1733670314707,0.60414851,99721.0,99720.0,0.00103742]
[1733670314708,0.60714851,99721.0,99720.0,0.00103742]
[1733670315755,0.61614851,99721.0,99720.0,0.00103742]
[1733670315954,0.60414851,99721.0,99720.0,0.00103742]
[1733670316367,0.61814851,99721.0,99720.0,0.00103742]
[1733670316590,0.60914851,99721.0,99720.0,0.00103742]
[1733670316795,0.60414851,99721.0,99720.0,0.00103742]
[1733670316975,0.60914851,99721.0,99720.0,0.00103742]
[1733670317176,0.61814851,99721.0,99720.0,0.00103742]
[1733670317387,0.61314851,99721.0,99720.0,0.00103742]
[1733670317734,0.61814851,99721.0,99720.0,0.00103742]
[1733670318324,0.044916,99718.0,99694.0,0.0197225]
[1733670318608,0.044916,99713.0,99690.0,0.0008654]
[1733670318807,0.180556,99693.0,99690.0,0.0008654]
[1733670319517,0.361112,99693.0,99690.0,0.0008654]
[1733670319731,0.180557,99691.0,99690.0,0.0008654]
[1733670319971,0.28058651,99691.0,99690.0,0.0008654]
[1733670321090,0.28975867,99691.0,99690.0,0.0008654]
[1733670321681,0.41097467,99691.0,99690.0,0.0008654]
[1733670322310,0.36405867,99691.0,99690.0,0.0008654]
[1733670322612,0.35905867,99691.0,99690.0,0.0008654]
[1733670322830,0.36605867,99691.0,99690.0,0.0008654]
[1733670323038,0.35905867,99691.0,99690.0,0.0008654]
[1733670323286,0.35705867,99691.0,99690.0,0.0008654]
[1733670323491,0.49248264,99691.0,99690.0,0.0008654]
[1733670323609,0.48348264,99691.0,99690.0,0.0008654]
[1733670323820,0.47848264,99691.0,99690.0,0.0008654]
[1733670324051,0.41097467,99691.0,99690.0,0.0008654]
[1733670324272,0.40797467,99691.0,99690.0,0.0008654]
[1733670325339,0.40197467,99691.0,99690.0,0.0008654]
[1733670325547,0.56097467,99691.0,99690.0,0.0008654]
[1733670326213,0.56097467,99691.0,99680.0,0.000865]
[1733670326214,0.225492,99681.0,99680.0,1e-06]
[1733670326424,0.47552151,99681.0,99680.0,1e-06]
[1733670327065,0.47538051,99681.0,99680.0,1e-06]
[1733670327488,0.55088051,99681.0,99680.0,1e-06]
[1733670328562,0.28546451,99681.0,99680.0,1e-06]
[1733670329010,0.28046451,99681.0,99680.0,1e-06]
[1733670329211,0.28946451,99681.0,99680.0,1e-06]
[1733670329423,0.29646451,99681.0,99680.0,1e-06]
[1733670329629,0.28746451,99681.0,99680.0,1e-06]
[1733670329826,0.28946451,99681.0,99680.0,1e-06]
[1733670330291,0.28646451,99681.0,99680.0,1e-06]
[1733670330688,0.29546451,99681.0,99680.0,1e-06]
[1733670330845,0.28646451,99681.0,99680.0,1e-06]
[1733670331321,0.29546451,99681.0,99680.0,1e-06]
[1733670331873,0.29320936,99681.0,99680.0,1e-06]
[1733670332472,0.28420936,99681.0,99680.0,1e-06]
[1733670333010,0.29220936,99681.0,99680.0,1e-06]
[1733670333209,0.28420936,99681.0,99680.0,1e-06]
[1733670333538,0.3441791,99681.0,99680.0,1e-06]
[1733670333733,0.44720936,99681.0,99680.0,1e-06]
[1733670334427,0.48312536,99681.0,99680.0,1e-06]
[1733670335347,0.47912536,99681.0,99680.0,1e-06]
[1733670335595,0.48312536,99681.0,99680.0,1e-06]
[1733670335795,0.49212536,99681.0,99680.0,1e-06]
[1733670335996,0.48312536,99681.0,99680.0,1e-06]
[1733670336218,0.47912536,99681.0,99680.0,1e-06]
[1733670336446,0.49412536,99681.0,99680.0,1e-06]
[1733670336662,0.48512536,99681.0,99680.0,1e-06]
[1733670336838,0.43420936,99681.0,99680.0,1e-06]
[1733670337067,0.44320936,99681.0,99680.0,1e-06]
[1733670337275,0.44820936,99681.0,99680.0,1e-06]
[1733670338538,0.6149875,99681.0,99680.0,1e-06]
[1733670338756,0.6149875,99681.0,99660.0,0.0008652]
[1733670338757,0.044916,99661.0,99660.0,0.0008652]
[1733670338981,0.14494551,99661.0,99660.0,0.0008652]
[1733670339190,0.1037605,99661.0,99660.0,0.0008652]
[1733670339395,0.1486765,99661.0,99660.0,0.0008652]
[1733670339603,0.21772535,99661.0,99660.0,0.0008652]
[1733670340128,0.21789745,99661.0,99660.0,0.0008652]
[1733670340364,0.22689745,99661.0,99660.0,0.0008652]
[1733670340818,0.22989745,99661.0,99660.0,0.0008652]
[1733670341268,0.1608486,99661.0,99660.0,0.0008652]
[1733670342823,0.19623647,99661.0,99660.0,0.0008652]
[1733670343549,0.34623647,99661.0,99660.0,0.0008652]
[1733670344675,0.37129747,99661.0,99660.0,2e-07]
[1733670344806,0.38450078,99661.0,99660.0,2e-07]
[1733670345000,0.48431612,99661.0,99660.0,2e-07]
[1733670345203,0.225555,99646.0,99606.0,0.0776]
[1733670345454,0.50229034,99646.0,99621.0,0.00313801]
[1733670345604,0.53581075,99646.0,99606.0,0.0776]
[1733670346003,0.53581075,99646.0,99622.0,0.00313805]
[1733670346327,0.65291406,99646.0,99610.0,0.01980598]
[1733670346524,0.65291406,99646.0,99645.0,1e-06]
[1733670346525,0.7587294,99646.0,99645.0,1e-06]
[1733670346936,0.7617294,99646.0,99645.0,1e-06]
[1733670347133,0.74557759,99646.0,99645.0,1e-06]
[1733670347340,0.77063859,99646.0,99645.0,1e-06]
[1733670347764,0.77663859,99646.0,99645.0,1e-06]
[1733670348174,0.77663859,99646.0,99594.0,0.0776]
[1733670348175,0.2256,99621.0,99594.0,0.0776]
[1733670348378,0.40732511,99621.0,99594.0,0.0776]
[1733670348580,0.41101752,99621.0,99594.0,0.0776]
[1733670349194,0.41737868,99621.0,99594.0,0.0776]
[1733670349437,0.41755065,99621.0,99599.0,0.024939]
[1733670349662,0.35885505,99621.0,99599.0,0.024939]
[1733670350108,0.36385505,99621.0,99594.0,0.102539]
[1733670350327,0.36385505,99621.0,99594.0,0.0776]
[1733670350581,0.33449389,99621.0,99598.0,0.024939]
[1733670351004,0.29357789,99621.0,99598.0,0.205664]
[1733670351213,0.28457789,99621.0,99603.0,0.180717]
[1733670351422,0.28457789,99621.0,99598.0,0.205664]
[1733670351627,0.29357789,99621.0,99598.0,0.205664]
[1733670352079,0.44357789,99621.0,99595.0,0.024939]
[1733670352289,0.44357789,99621.0,99597.0,0.180726]
[1733670352508,0.44957789,99621.0,99618.0,0.0776]
[1733670352736,0.44057789,99621.0,99606.0,0.0776]
[1733670352974,0.43457789,99621.0,99606.0,0.0776]
[1733670353207,0.44857789,99621.0,99606.0,0.0776]
[1733670354110,0.44357789,99621.0,99606.0,0.0776]
[1733670354511,0.43457789,99621.0,99606.0,0.0776]
[1733670354741,0.44357789,99621.0,99606.0,0.0776]
[1733670355517,0.44957789,99621.0,99606.0,0.0776]
[1733670355936,0.44357789,99621.0,99606.0,0.0776]
[1733670356621,0.44357789,99621.0,99606.0,0.25831]
[1733670356622,0.28457789,99621.0,99606.0,0.25831]
[1733670356913,0.28457789,99621.0,99620.0,0.0811653]
[1733670356914,0.11789389,99621.0,99620.0,0.0811653]
[1733670357264,0.10389389,99621.0,99620.0,0.0811653]
[1733670357458,0.11289389,99621.0,99620.0,0.0811653]
[1733670357891,0.10389389,99621.0,99620.0,0.0811653]
[1733670358095,0.11289389,99621.0,99620.0,0.1308653]
[1733670358307,0.10920148,99621.0,99620.0,0.1308653]
[1733670358461,0.10383283,99621.0,99620.0,0.1308653]
[1733670358657,0.10983283,99621.0,99620.0,0.1308653]
[1733670359093,0.10383283,99621.0,99620.0,0.1308653]
[1733670359297,0.00380332,99621.0,99620.0,0.3115513]
[1733670359508,0.00017197,99621.0,99620.0,0.3415743]
[1733670360333,0.00917197,99621.0,99620.0,0.3415743]
[1733670360768,0.00117197,99621.0,99620.0,0.3645743]
[1733670361092,0.00417197,99621.0,99620.0,0.3645743]
[1733670361300,0.00117197,99621.0,99620.0,0.3645743]
[1733670362175,0.00017197,99621.0,99620.0,0.3645743]
[1733670362818,0.10020148,99621.0,99620.0,0.0008653]
[1733670363234,0.10384123,99621.0,99620.0,0.0008653]
[1733670363450,0.10584123,99621.0,99620.0,0.0008653]
[1733670363650,0.10384123,99621.0,99620.0,0.0008653]
[1733670363891,0.10884123,99621.0,99620.0,0.0008653]
[1733670364106,0.10984123,99621.0,99620.0,0.0008653]
[1733670364397,0.10484123,99621.0,99620.0,0.0008653]
[1733670364600,0.11384123,99621.0,99620.0,0.0008653]
[1733670364843,0.10484123,99621.0,99620.0,0.0008653]
[1733670365314,0.10384123,99621.0,99620.0,0.0008653]
[1733670365800,0.10684123,99621.0,99620.0,0.0008653]
[1733670365998,0.15815265,99621.0,99620.0,0.0008653]
[1733670366320,0.16515265,99621.0,99620.0,0.0008653]
[1733670366524,0.20006865,99621.0,99620.0,0.0008653]
[1733670366727,0.37942981,99621.0,99620.0,0.0008653]
[1733670366987,0.39042981,99621.0,99620.0,0.0008653]
[1733670367216,0.38142981,99621.0,99620.0,0.0008653]
[1733670367625,0.39042981,99621.0,99620.0,0.0008653]
[1733670367829,0.38142981,99621.0,99620.0,0.0008653]
[1733670368239,0.33711839,99621.0,99620.0,0.0008653]
[1733670368442,0.34211839,99621.0,99620.0,0.0008653]
[1733670368985,0.33711839,99621.0,99620.0,0.0008653]
[1733670369200,0.34311839,99621.0,99620.0,0.0008653]
[1733670369674,0.32811839,99621.0,99620.0,0.0008653]
[1733670370041,0.407147,99621.0,99620.0,0.0008653]
[1733670370238,0.36878584,99621.0,99620.0,0.0008653]
[1733670370434,0.37378584,99621.0,99620.0,0.0008653]
[1733670370666,0.38278584,99621.0,99620.0,0.0008653]
[1733670370885,0.37378584,99621.0,99620.0,0.0003653]
[1733670371225,0.38278584,99621.0,99620.0,0.0003653]
[1733670371423,0.37378584,99621.0,99620.0,0.0003653]
[1733670372460,0.36878584,99621.0,99620.0,0.0003653]
[1733670372662,0.29875723,99621.0,99620.0,0.0003653]
[1733670372911,0.26284123,99621.0,99620.0,0.0003653]
[1733670373116,0.10984123,99621.0,99620.0,0.0003653]
[1733670373538,0.11284123,99621.0,99620.0,0.0003653]
[1733670373783,0.10384123,99621.0,99620.0,0.0003653]
[1733670373994,0.10884123,99621.0,99620.0,0.0003653]
[1733670374218,0.11784123,99621.0,99620.0,0.0003653]
[1733670375125,0.10384123,99621.0,99620.0,0.0003653]
[1733670375554,0.10684123,99621.0,99620.0,0.0003653]
[1733670375988,0.10384123,99621.0,99620.0,0.0003653]
[1733670376190,0.20967023,99621.0,99620.0,0.0003653]
[1733670376398,0.21867023,99621.0,99620.0,0.0003653]
[1733670376546,0.20967023,99621.0,99620.0,0.0003653]
[1733670376749,0.20567023,99621.0,99620.0,0.0003653]
[1733670377020,0.20967023,99621.0,99620.0,0.0003653]
[1733670377457,0.20967023,99621.0,99620.0,0.0767653]
[1733670377458,0.10964072,99621.0,99620.0,0.0767653]
[1733670377590,0.10964072,99621.0,99620.0,0.1563883]
[1733670377957,0.10564072,99621.0,99620.0,0.1557163]
[1733670378166,0.10564072,99621.0,99620.0,0.1787163]
[1733670378167,0.10864072,99621.0,99620.0,0.1787163]
[1733670378854,0.10964072,99621.0,99620.0,0.1787163]
[1733670379267,0.10864072,99621.0,99620.0,0.1787163]
[1733670379479,0.10664072,99621.0,99620.0,0.1787163]
[1733670380106,0.10500097,99621.0,99620.0,0.18929181]
[1733670380733,0.03978275,99621.0,99620.0,0.18929181]
[1733670380964,0.03678275,99621.0,99620.0,0.18929181]
[1733670382635,0.03778275,99621.0,99620.0,0.18929181]
[1733670383041,0.03878275,99621.0,99620.0,0.18929181]
[1733670384310,0.03878275,99621.0,99620.0,0.19029555]
[1733670384512,0.180614,99660.0,99645.0,0.180641]
[1733670384727,0.10002951,99649.0,99645.0,0.180641]
[1733670385140,0.180614,99660.0,99645.0,0.180641]
[1733670385141,0.00357874,99648.0,99645.0,0.180641]
[1733670385319,0.180614,99660.0,99645.0,0.180641]
[1733670385530,0.10176091,99650.0,99645.0,0.180641]
[1733670385740,0.10176091,99650.0,99644.0,0.1228]
[1733670385880,0.10276091,99650.0,99644.0,0.1228]
[1733670386089,0.00357874,99649.0,99644.0,0.303442]
[1733670386313,0.10002951,99648.0,99638.0,0.024939]
[1733670386619,0.10002951,99648.0,99635.0,0.0763]
[1733670386620,0.10362512,99648.0,99639.0,0.024939]
[1733670386814,0.180647,99642.0,99637.0,0.024939]
[1733670386965,0.10002951,99641.0,99637.0,0.024939]
[1733670387219,0.10362387,99641.0,99637.0,0.024939]
[1733670388213,0.10362387,99641.0,99635.0,0.0763]
[1733670388214,0.10362387,99641.0,99639.0,0.024939]
[1733670388591,0.10362387,99641.0,99640.0,0.030023]
[1733670388592,0.00359436,99641.0,99640.0,0.030023]
[1733670388789,0.00359436,99641.0,99640.0,0.210673]
[1733670388990,0.007,99642.0,99640.0,0.391323]
[1733670389190,0.007,99642.0,99640.0,0.210673]
[1733670389390,0.007,99642.0,99635.0,0.0763]
[1733670389391,0.0017314,99650.0,99644.0,0.024939]
[1733670389596,0.0017314,99650.0,99646.0,0.024939]
[1733670389597,0.10176091,99650.0,99646.0,0.024939]
[1733670389796,0.10176091,99650.0,99647.0,0.180637]
[1733670390034,0.00359424,99649.0,99647.0,0.180637]
[1733670390235,0.10176091,99650.0,99648.0,0.0763]
[1733670390658,0.0017314,99650.0,99648.0,0.106323]
[1733670390859,0.0077314,99650.0,99649.0,0.024939]
[1733670391007,0.0077314,99650.0,99649.0,0.280157]
[1733670391209,0.0077314,99650.0,99649.0,0.356457]
[1733670392235,0.0017314,99650.0,99649.0,0.356457]
[1733670392436,0.0017314,99650.0,99649.0,0.37672967]
[1733670392437,0.0077314,99650.0,99649.0,0.37672967]
[1733670392843,0.0017314,99650.0,99649.0,0.37672967]
[1733670393766,0.0027314,99650.0,99649.0,0.37672967]
[1733670394156,0.0017314,99650.0,99649.0,0.37672967]
[1733670394796,0.0017314,99650.0,99649.0,0.37872967]
[1733670395002,0.0017314,99650.0,99649.0,0.52872967]
[1733670395208,0.0017314,99650.0,99649.0,0.52672967]
[1733670395419,0.0027314,99650.0,99649.0,0.52872967]
[1733670395628,0.0027314,99650.0,99649.0,0.52972967]
[1733670396250,0.18057,99684.0,99670.0,0.024939]
[1733670396460,0.10002951,99683.0,99671.0,0.0763]
[1733670396670,0.10571552,99683.0,99671.0,0.0763]
[1733670397531,0.10588836,99683.0,99671.0,0.0763]
[1733670398349,0.15276348,99683.0,99661.0,0.101239]
[1733670398562,0.15276348,99683.0,99661.0,0.0763]
[1733670398563,0.15,99682.0,99661.0,0.0763]
[1733670398779,0.10002951,99681.0,99661.0,0.0763]
[1733670399208,0.180591,99673.0,99661.0,0.0763]
[1733670399422,0.180594,99671.0,99661.0,0.0763]
[1733670399644,0.10002951,99670.0,99661.0,0.0763]
[1733670400069,0.00497397,99669.0,99661.0,0.0763]
[1733670400284,0.10002951,99668.0,99661.0,0.0763]
[1733670400964,0.00497397,99667.0,99661.0,0.0763]
[1733670401171,0.10002951,99666.0,99661.0,0.0763]
[1733670401392,0.00497397,99667.0,99666.0,0.024939]
[1733670401595,0.180576,99681.0,99667.0,0.024939]
[1733670401596,0.001,99668.0,99667.0,0.024939]
[1733670402008,0.10002951,99680.0,99667.0,0.024939]
[1733670402462,0.006,99669.0,99668.0,0.030023]
[1733670402635,0.00497614,99679.0,99671.0,0.024939]
[1733670402988,0.180583,99677.0,99671.0,0.024939]
[1733670403103,0.10002951,99676.0,99671.0,0.024939]
[1733670403314,0.1050059,99676.0,99671.0,0.024939]
[1733670403970,0.180586,99675.0,99669.0,0.024939]
[1733670404173,0.180586,99675.0,99670.0,0.024939]
[1733670404174,0.10002951,99674.0,99670.0,0.024939]
[1733670404376,0.18059,99673.0,99668.0,0.024939]
[1733670404574,0.180594,99671.0,99663.0,0.024939]
[1733670404781,0.10002951,99670.0,99663.0,0.024939]
[1733670404938,0.10002951,99670.0,99665.0,0.024939]
[1733670405158,0.00497547,99669.0,99665.0,0.024939]
[1733670405570,0.00497547,99669.0,99663.0,0.024939]
[1733670405773,0.00497547,99669.0,99668.0,0.024939]
[1733670406540,0.10500498,99669.0,99667.0,0.024939]
[1733670406990,0.10500498,99669.0,99668.0,0.024939]
[1733670407281,0.10900498,99669.0,99668.0,0.024939]
[1733670407481,0.10900498,99669.0,99667.0,0.024939]
[1733670407482,0.10600498,99669.0,99667.0,0.024939]
[1733670407735,0.10600498,99669.0,99663.0,0.024939]
[1733670407736,0.28660298,99669.0,99663.0,0.024939]
[1733670407935,0.180601,99667.0,99659.0,0.024939]
[1733670408147,0.10002951,99668.0,99651.0,0.024939]
[1733670408148,0.10002951,99666.0,99651.0,0.024939]
[1733670408353,0.10002951,99666.0,99649.0,0.0476]
[1733670408354,0.180626,99654.0,99650.0,0.024939]
[1733670408687,0.361256,99652.0,99644.0,0.024939]
[1733670408816,0.180641,99646.0,99645.0,0.024939]
[1733670409248,0.0049754,99646.0,99645.0,0.024939]
[1733670409663,0.0049754,99646.0,99633.0,0.185745]
[1733670409664,0.10002951,99646.0,99633.0,0.01961223]
[1733670409891,0.180658,99636.0,99633.0,0.0201867]
[1733670410059,0.00496027,99635.0,99633.0,0.0201867]
[1733670410512,0.180661,99634.0,99633.0,0.0201867]
[1733670410763,0.18562039,99634.0,99633.0,0.0451257]
[1733670410958,0.00495939,99634.0,99633.0,0.0451257]
[1733670411079,0.180658,99636.0,99633.0,0.0451257]
[1733670411295,0.00495935,99635.0,99633.0,0.0451257]
[1733670412549,0.00694315,99635.0,99633.0,0.0451257]
[1733670412920,0.00694315,99635.0,99633.0,0.00057447]
[1733670412921,0.10002951,99634.0,99633.0,0.00057447]
[1733670413097,0.10694819,99634.0,99633.0,0.00057447]
[1733670413922,0.18274819,99634.0,99633.0,0.00057447]
[1733670414368,0.19174819,99634.0,99633.0,0.00057447]
[1733670414543,0.11594819,99634.0,99633.0,0.00057447]
[1733670415288,0.12094819,99634.0,99633.0,0.00057447]
[1733670415639,0.10694819,99634.0,99633.0,0.00057447]
[1733670416025,0.11994819,99634.0,99633.0,0.00057447]
[1733670416224,0.11094819,99634.0,99633.0,0.00057447]
[1733670416624,0.11994819,99634.0,99633.0,0.00057447]
[1733670416830,0.11094819,99634.0,99633.0,0.00057447]
[1733670417300,0.11594819,99634.0,99633.0,0.00057447]
[1733670417755,0.11994819,99634.0,99633.0,0.00057447]
[1733670418181,0.11594819,99634.0,99633.0,0.00057447]
[1733670418384,0.11894819,99634.0,99633.0,0.00057447]
[1733670419067,0.11594819,99634.0,99633.0,0.00057447]
[1733670419268,0.11594819,99634.0,99633.0,0.02551347]
[1733670419269,0.10694819,99634.0,99633.0,0.02551347]
[1733670419452,0.10894819,99634.0,99633.0,0.02551347]
[1733670419661,0.11794819,99634.0,99633.0,0.02551347]
[1733670419900,0.10894819,99634.0,99633.0,0.02551347]
[1733670420075,0.00891868,99634.0,99633.0,0.02551347]
[1733670420298,0.011,99634.0,99633.0,0.02551347]
[1733670421073,0.009,99634.0,99633.0,0.02551347]
[1733670421482,0.011,99634.0,99633.0,0.02551347]
[1733670421664,0.011,99634.0,99633.0,0.03059747]
[1733670421874,0.011,99634.0,99633.0,0.23426047]
[1733670422100,0.009,99634.0,99633.0,0.23426047]
[1733670422572,0.011,99634.0,99633.0,0.23426047]
[1733670422818,0.011,99634.0,99633.0,0.31436047]
[1733670423007,0.0017302,99650.0,99649.0,0.210657]
[1733670423215,0.0017302,99650.0,99649.0,0.290757]
[1733670424696,0.0017302,99650.0,99649.0,0.110123]
[1733670424697,0.0087302,99650.0,99649.0,0.110123]
[1733670425139,0.0097302,99650.0,99649.0,0.110123]
[1733670425586,0.0087302,99650.0,99649.0,0.110123]
[1733670425844,0.10875971,99650.0,99640.0,0.024939]
[1733670426085,0.10875971,99650.0,99647.0,0.024939]
[1733670426086,0.180635,99648.0,99647.0,0.024939]
[1733670426322,0.28758626,99648.0,99647.0,0.024939]
[1733670427465,0.29558626,99648.0,99647.0,0.024939]
[1733670427687,0.31758626,99648.0,99647.0,0.024939]
[1733670428152,0.32358626,99648.0,99647.0,0.024939]
[1733670428388,0.31758626,99648.0,99647.0,0.024939]
[1733670429023,0.31858626,99648.0,99647.0,0.024939]
[1733670429938,0.32558626,99648.0,99647.0,0.024939]
[1733670430156,0.31858626,99648.0,99647.0,0.024939]
[1733670430602,0.32658626,99648.0,99647.0,0.024939]
[1733670430801,0.31858626,99648.0,99647.0,0.024939]
[1733670431084,0.32758626,99648.0,99647.0,0.024939]
[1733670431279,0.32658626,99648.0,99647.0,0.024939]
[1733670431482,0.31758626,99648.0,99647.0,0.024939]
[1733670431702,0.32858626,99648.0,99647.0,0.024939]
[1733670432130,0.32858626,99648.0,99629.0,0.02052796]
[1733670432131,0.03,99641.0,99633.0,0.00057447]
[1733670432417,0.005061,99634.0,99633.0,0.00057447]
[1733670432584,0.10509051,99634.0,99633.0,0.00057447]
[1733670432790,0.11200695,99634.0,99633.0,0.00057447]
[1733670433747,0.29880354,99634.0,99633.0,0.00057447]
[1733670434008,0.29880354,99634.0,99620.0,0.0008651]
[1733670434009,0.094916,99631.0,99630.0,2.7e-07]
[1733670434243,0.094916,99631.0,99620.0,0.0008651]
[1733670434244,0.380661,99621.0,99620.0,0.0008651]
[1733670434454,0.53069051,99621.0,99620.0,1e-07]
[1733670434661,0.5347201,99621.0,99620.0,1e-07]
[1733670434874,0.60626021,99621.0,99620.0,1e-07]
[1733670435370,0.380698,99601.0,99571.0,0.0003]
[1733670435600,0.48072751,99601.0,99571.0,0.0003]
[1733670435804,0.48524029,99601.0,99571.0,0.0003]
[1733670436013,0.44032429,99601.0,99578.0,0.005084]
[1733670436219,0.44032429,99601.0,99571.0,0.0003]
[1733670436220,0.10960329,99601.0,99591.0,0.005084]
[1733670436759,0.11017918,99601.0,99583.0,0.005084]
[1733670436959,0.11017918,99601.0,99585.0,0.005084]
[1733670437594,0.11617918,99601.0,99585.0,0.005084]
[1733670437809,0.12517918,99601.0,99585.0,0.005084]
[1733670438015,0.11617918,99601.0,99585.0,0.005084]
[1733670438212,0.11017918,99601.0,99585.0,0.005084]
[1733670438446,0.11417918,99601.0,99585.0,0.005084]
[1733670438746,0.11417918,99601.0,99572.0,0.005084]
[1733670438747,0.39661034,99601.0,99572.0,0.005084]
[1733670438969,0.27121034,99601.0,99572.0,0.005084]
[1733670439110,0.27421034,99601.0,99572.0,0.005084]
[1733670439317,0.28321034,99601.0,99572.0,0.005084]
[1733670439724,0.27421034,99601.0,99572.0,0.005084]
[1733670440127,0.27421034,99601.0,99571.0,0.0003]
[1733670440128,0.28321034,99601.0,99571.0,0.0003]
[1733670440332,0.31912634,99601.0,99571.0,0.0003]
[1733670440831,0.32512634,99601.0,99571.0,0.0003]
[1733670441026,0.31612634,99601.0,99571.0,0.0003]
[1733670441233,0.35578,99601.0,99571.0,0.0003]
[1733670441650,0.36478,99601.0,99571.0,0.0003]
[1733670441880,0.36478,99601.0,99600.0,3e-07]
[1733670442088,0.430716,99591.0,99571.0,0.0003]
[1733670442294,0.59189061,99591.0,99590.0,3e-07]
[1733670442499,0.59189061,99591.0,99571.0,6e-07]
[1733670442500,0.049977,99572.0,99571.0,6e-07]
[1733670442713,0.30000651,99572.0,99571.0,6e-07]
[1733670442918,0.48077951,99572.0,99571.0,6e-07]
[1733670443135,0.61166442,99572.0,99571.0,6e-07]
[1733670443355,0.61166442,99572.0,99555.0,0.0015]
[1733670443356,0.61166442,99572.0,99540.0,0.0008648]
[1733670443357,0.005061,99545.0,99540.0,0.0008648]
[1733670443561,0.044916,99546.0,99535.0,8e-07]
[1733670443562,0.3359,99536.0,99535.0,8e-07]
[1733670443775,0.48592951,99536.0,99535.0,8e-07]
[1733670443984,0.48592951,99536.0,99471.0,0.0804]
[1733670443985,0.385941,99513.0,99491.0,0.005084]
[1733670444207,0.25509051,99512.0,99484.0,0.005084]
[1733670444431,0.25509051,99512.0,99448.0,0.180997]
[1733670444432,0.35588912,99512.0,99511.0,0.919608]
[1733670444646,0.65735912,99512.0,99511.0,0.919608]
[1733670444854,0.41715601,99512.0,99511.0,0.919608]
[1733670445508,0.43401973,99512.0,99511.0,0.919608]
[1733670445909,0.42315601,99512.0,99511.0,0.919608]
[1733670446565,0.43215601,99512.0,99511.0,0.919608]
[1733670447399,0.41715601,99512.0,99511.0,0.919608]
[1733670447858,0.42615601,99512.0,99511.0,0.919608]
[1733670448064,0.41715601,99512.0,99511.0,0.919608]
[1733670448279,0.50104631,99512.0,99511.0,0.919608]
[1733670448965,0.49504631,99512.0,99511.0,0.919608]
[1733670449378,0.50004631,99512.0,99511.0,0.919608]
[1733670449797,0.50904631,99512.0,99511.0,0.919608]
[1733670450006,0.50004631,99512.0,99511.0,0.919608]
[1733670450210,0.65004631,99512.0,99511.0,0.919608]
[1733670450419,0.64871975,99512.0,99511.0,0.919608]
[1733670450628,0.63971975,99512.0,99511.0,0.919608]
[1733670450859,0.64571975,99512.0,99511.0,0.919608]
[1733670451094,0.69963575,99512.0,99511.0,0.919608]
[1733670451323,0.68463575,99512.0,99511.0,0.919608]
[1733670451586,0.74363575,99512.0,99511.0,0.776708]
[1733670451811,0.75163575,99512.0,99511.0,0.776708]
[1733670452020,0.62374545,99512.0,99511.0,0.776708]
[1733670452233,0.57082945,99512.0,99511.0,0.776708]
[1733670452438,0.42082945,99512.0,99511.0,0.776708]
[1733670452882,0.41082945,99512.0,99511.0,0.776708]
[1733670453088,0.41982945,99512.0,99511.0,0.776708]
[1733670453297,0.4843912,99512.0,99511.0,0.776708]
[1733670453531,0.4753912,99512.0,99511.0,0.776708]
[1733670453766,0.7353072,99512.0,99511.0,0.776708]
[1733670454263,0.7293072,99512.0,99511.0,0.776708]
[1733670454497,0.7343072,99512.0,99511.0,0.776708]
[1733670454759,0.7253072,99512.0,99511.0,0.776708]
[1733670454955,0.7203072,99512.0,99511.0,0.776708]
[1733670455222,0.7283072,99512.0,99511.0,0.776708]
[1733670456147,0.7373072,99512.0,99511.0,0.776708]
[1733670456366,0.7283072,99512.0,99511.0,0.776708]
[1733670456840,0.7373072,99512.0,99511.0,0.776708]
[1733670457054,0.7293072,99512.0,99511.0,0.776708]
[1733670457299,0.7373072,99512.0,99511.0,0.776708]
[1733670457532,0.7283072,99512.0,99511.0,0.776708]
[1733670457759,0.7293072,99512.0,99511.0,0.776708]
[1733670457975,0.7273072,99512.0,99511.0,0.776708]
[1733670458334,0.7203072,99512.0,99511.0,0.776708]
[1733670458976,0.7433072,99512.0,99511.0,0.776708]
[1733670459178,0.7203072,99512.0,99511.0,0.776708]
[1733670459376,0.7293072,99512.0,99511.0,0.776708]
[1733670459791,0.7273072,99512.0,99511.0,0.776708]
[1733670459997,0.7363072,99512.0,99511.0,0.776708]
[1733670460197,0.7293072,99512.0,99511.0,0.776708]
[1733670460451,0.7203072,99512.0,99511.0,0.776708]
[1733670460606,0.7293072,99512.0,99511.0,0.776708]
[1733670460810,0.7373072,99512.0,99511.0,0.776708]
[1733670461111,0.7283072,99512.0,99511.0,0.776708]
[1733670461349,0.7293072,99512.0,99511.0,0.776708]
[1733670461772,0.7363072,99512.0,99511.0,0.776708]
[1733670462625,0.7273072,99512.0,99511.0,0.776708]
[1733670463035,0.7363072,99512.0,99511.0,0.776708]
[1733670463238,0.72565665,99512.0,99511.0,0.776708]
[1733670463445,0.71865665,99512.0,99511.0,0.776708]
[1733670463647,0.72765665,99512.0,99511.0,0.776708]
[1733670463849,0.72565665,99512.0,99511.0,0.776708]
[1733670464328,0.4161789,99512.0,99511.0,0.776708]
[1733670464552,0.4181789,99512.0,99511.0,0.776708]
[1733670464789,0.4251789,99512.0,99511.0,0.776708]
[1733670465017,0.43095777,99512.0,99511.0,0.776708]
[1733670465252,0.42395777,99512.0,99511.0,0.776708]
[1733670465492,0.4978474,99512.0,99511.0,0.776708]
[1733670465705,0.4888474,99512.0,99511.0,0.776708]
[1733670465910,0.41495777,99512.0,99511.0,0.776708]
[1733670466109,0.42395777,99512.0,99511.0,0.776708]
[1733670466313,0.41495777,99512.0,99511.0,0.776708]
[1733670466549,0.42195777,99512.0,99511.0,0.776708]
[1733670466767,0.33192826,99512.0,99511.0,0.911592]
[1733670467002,0.23382826,99512.0,99511.0,0.911592]
[1733670467238,0.21782826,99512.0,99511.0,0.911592]
[1733670467468,0.001732,99520.0,99511.0,0.911592]
[1733670467469,0.001732,99520.0,99519.0,0.215953]
[1733670467879,0.001732,99520.0,99519.0,0.298753]
[1733670468107,0.00057518,99536.0,99535.0,0.21084]
[1733670468308,0.13060469,99536.0,99535.0,0.21084]
[1733670468511,0.13060469,99536.0,99535.0,0.215924]
[1733670468711,0.14005097,99536.0,99535.0,0.215924]
[1733670469343,0.03645134,99536.0,99535.0,0.215924]
[1733670469732,0.00057518,99536.0,99535.0,0.215924]
[1733670470958,0.13860469,99536.0,99535.0,0.035084]
[1733670471399,0.14452539,99536.0,99535.0,0.035084]